[Event "*** Titled Tuesday Blitz"]
[Site "Chess.com"]
[Date "2020.04.28"]
[Round "4"]
[White "Pedrada88"]
[Black "FedaMaster"]
[Result "1-0"]
[WhiteElo "2409"]
[BlackElo "2566"]
[TimeControl "180+1"]
[EndTime "10:39:37 PDT"]
[Termination "Pedrada88 won on time"]

1. Nf3 {[%clk 0:03:00.9]} 1... Nf6 {[%clk 0:02:59.5]} 2. g3 {[%clk 0:03:01.2]}
2... g6 {[%clk 0:02:59.1]} 3. Bg2 {[%clk 0:03:02.1]} 3... Bg7 {[%clk 0:02:59.4]}
4. O-O {[%clk 0:03:02.7]} 4... O-O {[%clk 0:02:59.3]} 5. d4 {[%clk 0:03:03.3]}
5... d5 {[%clk 0:02:59.5]} 6. c4 {[%clk 0:03:03]} 6... Nc6 {[%clk 0:02:58.3]} 7.
cxd5 {[%clk 0:03:02.7]} 7... Nxd5 {[%clk 0:02:58.7]} 8. Nc3 {[%clk 0:03:03.2]}
8... Nb6 {[%clk 0:02:57.7]} 9. d5 {[%clk 0:03:03.2]} 9... Na5 {[%clk 0:02:57.6]}
10. Qc2 {[%clk 0:03:03.3]} 10... c6 {[%clk 0:02:53]} 11. dxc6 {[%clk 0:03:02.3]}
11... Nxc6 {[%clk 0:02:51.6]} 12. Rd1 {[%clk 0:03:02.8]} 12... Bd7 {[%clk
0:02:36.3]} 13. Bf4 {[%clk 0:03:01.2]} 13... Qc8 {[%clk 0:02:26.2]} 14. Rac1
{[%clk 0:02:59.4]} 14... Bf5 {[%clk 0:02:17.4]} 15. e4 {[%clk 0:02:49.9]} 15...
Bg4 {[%clk 0:01:33.2]} 16. Nd5 {[%clk 0:02:34.5]} 16... Bxf3 {[%clk 0:01:12.1]}
17. Bxf3 {[%clk 0:02:10.4]} 17... Nxd5 {[%clk 0:01:07.4]} 18. exd5 {[%clk
0:02:09.1]} 18... Nd4 {[%clk 0:01:00.2]} 19. Qe4 {[%clk 0:01:50.6]} 19... Nxf3+
{[%clk 0:00:47.6]} 20. Qxf3 {[%clk 0:01:51.5]} 20... Qf5 {[%clk 0:00:48]} 21.
Qe3 {[%clk 0:01:20.4]} 21... Bxb2 {[%clk 0:00:40.3]} 22. Rc7 {[%clk 0:01:20.2]}
22... Bf6 {[%clk 0:00:32.6]} 23. Rxb7 {[%clk 0:01:18.6]} 23... Qc2 {[%clk
0:00:21.5]} 24. Rd2 {[%clk 0:01:12.7]} 24... Qc1+ {[%clk 0:00:14.5]} 25. Kg2
{[%clk 0:01:13.1]} 25... Qc8 {[%clk 0:00:04.8]} 26. Rxa7 {[%clk 0:01:07.9]}
26... Rxa7 {[%clk 0:00:03.5]} 27. Qxa7 {[%clk 0:01:08.8]} 27... Qf5 {[%clk
0:00:03.9]} 28. Qe3 {[%clk 0:01:03.8]} 28... h5 {[%clk 0:00:04.1]} 29. h4 {[%clk
0:00:57.5]} 29... Rd8 {[%clk 0:00:03.4]} 30. d6 {[%clk 0:00:52.9]} 1-0

[Event "*** Titled Tuesday Blitz"]
[Site "Chess.com"]
[Date "2020.04.28"]
[Round "4"]
[White "Tesla37"]
[Black "TheCount"]
[Result "1-0"]
[WhiteElo "2878"]
[BlackElo "2624"]
[TimeControl "180+1"]
[EndTime "10:39:38 PDT"]
[Termination "Tesla37 won by resignation"]

1. e4 {[%clk 0:03:00.9]} 1... e5 {[%clk 0:02:58.7]} 2. Nf3 {[%clk 0:03:00.2]}
2... Nc6 {[%clk 0:02:59.1]} 3. Bb5 {[%clk 0:02:59.6]} 3... a6 {[%clk 0:02:59]}
4. Ba4 {[%clk 0:02:59]} 4... Nf6 {[%clk 0:02:59.2]} 5. O-O {[%clk 0:02:59]} 5...
Be7 {[%clk 0:02:57.9]} 6. d3 {[%clk 0:02:58.8]} 6... b5 {[%clk 0:02:55.7]} 7.
Bb3 {[%clk 0:02:58.8]} 7... d6 {[%clk 0:02:56.3]} 8. a3 {[%clk 0:02:58.6]} 8...
O-O {[%clk 0:02:48.7]} 9. Nc3 {[%clk 0:02:58.4]} 9... Na5 {[%clk 0:02:41.2]} 10.
Ba2 {[%clk 0:02:57.7]} 10... Be6 {[%clk 0:02:41.3]} 11. b4 {[%clk 0:02:37.3]}
11... Bxa2 {[%clk 0:02:40.4]} 12. Rxa2 {[%clk 0:02:37.3]} 12... Nc6 {[%clk
0:02:40.9]} 13. Bd2 {[%clk 0:02:30.7]} 13... d5 {[%clk 0:02:30.2]} 14. exd5
{[%clk 0:02:28]} 14... Nxd5 {[%clk 0:02:29.7]} 15. Ne2 {[%clk 0:02:08.3]} 15...
Re8 {[%clk 0:02:27.9]} 16. Re1 {[%clk 0:02:05.7]} 16... Qd7 {[%clk 0:02:06.2]}
17. Ng3 {[%clk 0:02:04.2]} 17... Bf8 {[%clk 0:02:05.1]} 18. c4 {[%clk
0:01:49.9]} 18... Nb6 {[%clk 0:01:56.6]} 19. Qb3 {[%clk 0:01:33.3]} 19... Rad8
{[%clk 0:01:44.7]} 20. c5 {[%clk 0:01:32]} 20... Nd5 {[%clk 0:01:16.8]} 21. Ne4
{[%clk 0:01:30]} 21... h6 {[%clk 0:01:11.6]} 22. Bc1 {[%clk 0:01:26.7]} 22... f5
{[%clk 0:01:07]} 23. Rae2 {[%clk 0:01:17.2]} 23... Qf7 {[%clk 0:00:50.9]} 24.
Ng3 {[%clk 0:01:09.7]} 24... Nf4 {[%clk 0:00:48.5]} 25. Qxf7+ {[%clk 0:01:07.5]}
25... Kxf7 {[%clk 0:00:46.6]} 26. Bxf4 {[%clk 0:01:07]} 26... exf4 {[%clk
0:00:41.8]} 27. Rxe8 {[%clk 0:01:06.6]} 27... Rxe8 {[%clk 0:00:42.6]} 28. Rxe8
{[%clk 0:01:04.5]} 28... Kxe8 {[%clk 0:00:43.5]} 29. Nxf5 {[%clk 0:01:04.5]}
29... a5 {[%clk 0:00:36.9]} 30. bxa5 {[%clk 0:01:03.9]} 30... Bxc5 {[%clk
0:00:31.6]} 31. d4 {[%clk 0:00:54.8]} 31... Bxa3 {[%clk 0:00:29]} 32. a6 {[%clk
0:00:54.9]} 32... Kf7 {[%clk 0:00:19.8]} 33. d5 {[%clk 0:00:53.9]} 33... Na7
{[%clk 0:00:19.7]} 34. N5d4 {[%clk 0:00:53]} 34... Bc5 {[%clk 0:00:18.6]} 35.
Ne5+ {[%clk 0:00:51.5]} 35... Kf6 {[%clk 0:00:17.2]} 36. Nd7+ {[%clk 0:00:50.7]}
1-0

[Event "*** Titled Tuesday Blitz"]
[Site "Chess.com"]
[Date "2020.04.28"]
[Round "4"]
[White "agrigo3"]
[Black "maxsergej"]
[Result "0-1"]
[WhiteElo "2300"]
[BlackElo "2139"]
[TimeControl "180+1"]
[EndTime "10:39:42 PDT"]
[Termination "maxsergej won on time"]

1. Nf3 {[%clk 0:03:00.9]} 1... c5 {[%clk 0:02:55.8]} 2. g3 {[%clk 0:03:00.5]}
2... Nc6 {[%clk 0:02:55.2]} 3. Bg2 {[%clk 0:03:01.1]} 3... g6 {[%clk 0:02:55.5]}
4. O-O {[%clk 0:03:01.8]} 4... Bg7 {[%clk 0:02:55.8]} 5. e4 {[%clk 0:02:46.3]}
5... d6 {[%clk 0:02:52]} 6. c3 {[%clk 0:02:41.1]} 6... Nf6 {[%clk 0:02:44.5]} 7.
d4 {[%clk 0:02:20.3]} 7... cxd4 {[%clk 0:02:43.3]} 8. cxd4 {[%clk 0:02:19.8]}
8... O-O {[%clk 0:02:38.8]} 9. Nc3 {[%clk 0:02:16.1]} 9... Bg4 {[%clk
0:02:37.7]} 10. h3 {[%clk 0:02:11.7]} 10... Bxf3 {[%clk 0:02:37.4]} 11. Bxf3
{[%clk 0:02:12]} 11... e5 {[%clk 0:02:37.6]} 12. d5 {[%clk 0:01:45.6]} 12... Nd4
{[%clk 0:02:31.2]} 13. Bg2 {[%clk 0:01:46.1]} 13... Nd7 {[%clk 0:02:21.9]} 14.
f4 {[%clk 0:01:34.7]} 14... exf4 {[%clk 0:02:13.6]} 15. Bxf4 {[%clk 0:01:32.2]}
15... Qb6 {[%clk 0:02:01.3]} 16. Kh1 {[%clk 0:01:27.6]} 16... Qxb2 {[%clk
0:01:51.8]} 17. Na4 {[%clk 0:01:16.9]} 17... Qa3 {[%clk 0:01:51]} 18. Rb1 {[%clk
0:01:10.1]} 18... b6 {[%clk 0:01:38.9]} 19. Rf2 {[%clk 0:00:36.5]} 19... Rac8
{[%clk 0:01:24.5]} 20. Rd2 {[%clk 0:00:35.9]} 20... Rc4 {[%clk 0:01:24.1]} 21.
Nb2 {[%clk 0:00:32.9]} 21... Rb4 {[%clk 0:01:22]} 22. Nd3 {[%clk 0:00:17]} 22...
Rxb1 {[%clk 0:01:21.2]} 23. Qxb1 {[%clk 0:00:17.1]} 23... Ne5 {[%clk 0:01:08.7]}
24. Nxe5 {[%clk 0:00:14.6]} 24... Bxe5 {[%clk 0:01:08.3]} 25. Bxe5 {[%clk
0:00:12.5]} 25... dxe5 {[%clk 0:01:08.5]} 26. Kh2 {[%clk 0:00:12.6]} 26... h5
{[%clk 0:01:06.3]} 27. Rd3 {[%clk 0:00:11.3]} 27... Qd6 {[%clk 0:01:01.5]} 28.
Rc3 {[%clk 0:00:08.9]} 28... f5 {[%clk 0:00:55.1]} 29. Qd1 {[%clk 0:00:05.4]}
29... f4 {[%clk 0:00:51.8]} 30. gxf4 {[%clk 0:00:01.3]} 30... Rxf4 {[%clk
0:00:51.8]} 0-1

[Event "*** Titled Tuesday Blitz"]
[Site "Chess.com"]
[Date "2020.04.28"]
[Round "4"]
[White "marianokar"]
[Black "ALeks_Ivlev"]
[Result "0-1"]
[WhiteElo "2347"]
[BlackElo "2578"]
[TimeControl "180+1"]
[EndTime "10:39:43 PDT"]
[Termination "ALeks_Ivlev won on time"]

1. e4 {[%clk 0:03:00.9]} 1... c5 {[%clk 0:02:59.9]} 2. Nf3 {[%clk 0:02:52.3]}
2... d6 {[%clk 0:02:58.8]} 3. Bb5+ {[%clk 0:02:51.5]} 3... Nd7 {[%clk
0:02:58.2]} 4. Ba4 {[%clk 0:02:47.1]} 4... Nf6 {[%clk 0:02:55.9]} 5. O-O {[%clk
0:02:46.1]} 5... Nxe4 {[%clk 0:02:55.6]} 6. Re1 {[%clk 0:02:42.6]} 6... Nf6
{[%clk 0:02:55.4]} 7. d4 {[%clk 0:02:40.9]} 7... cxd4 {[%clk 0:02:55.2]} 8. Nxd4
{[%clk 0:02:40.5]} 8... e6 {[%clk 0:02:51.8]} 9. Nb5 {[%clk 0:01:48.6]} 9... a6
{[%clk 0:02:39.9]} 10. Nxd6+ {[%clk 0:01:47.1]} 10... Bxd6 {[%clk 0:02:39.8]}
11. Qxd6 {[%clk 0:01:47.5]} 11... Qe7 {[%clk 0:02:37.4]} 12. Qxe7+ {[%clk
0:01:37]} 12... Kxe7 {[%clk 0:02:37.2]} 13. Nc3 {[%clk 0:01:09.8]} 13... b5
{[%clk 0:02:35.4]} 14. Bb3 {[%clk 0:01:09.5]} 14... Bb7 {[%clk 0:02:32.7]} 15.
a4 {[%clk 0:00:54.5]} 15... b4 {[%clk 0:02:26.2]} 16. Na2 {[%clk 0:00:49.3]}
16... a5 {[%clk 0:02:25.7]} 17. Be3 {[%clk 0:00:18.4]} 17... Rac8 {[%clk
0:02:23.7]} 18. c3 {[%clk 0:00:17.9]} 18... bxc3 {[%clk 0:02:20.7]} 19. Nxc3
{[%clk 0:00:18.8]} 19... Nc5 {[%clk 0:02:20.8]} 20. Bc2 {[%clk 0:00:17.7]} 20...
Rhd8 {[%clk 0:02:19.9]} 21. Rab1 {[%clk 0:00:17]} 21... Nd3 {[%clk 0:02:18.5]}
22. Bxd3 {[%clk 0:00:14.7]} 22... Rxd3 {[%clk 0:02:18.2]} 23. Bb6 {[%clk
0:00:14.2]} 23... Nh5 {[%clk 0:01:52.8]} 24. g3 {[%clk 0:00:11.3]} 24... Ra8
{[%clk 0:01:43.2]} 25. Red1 {[%clk 0:00:10]} 25... Rxd1+ {[%clk 0:01:38.3]} 26.
Rxd1 {[%clk 0:00:10.9]} 26... g5 {[%clk 0:01:31.1]} 27. Bc5+ {[%clk 0:00:10.7]}
27... Kf6 {[%clk 0:01:31.5]} 28. Rd7 {[%clk 0:00:09.7]} 28... Bf3 {[%clk
0:01:31.2]} 29. Bd4+ {[%clk 0:00:07.6]} 29... Kg6 {[%clk 0:01:31.2]} 30. Kf1
{[%clk 0:00:07.2]} 30... Rb8 {[%clk 0:01:27.6]} 31. Nb5 {[%clk 0:00:04.4]} 31...
Bc6 {[%clk 0:01:24.4]} 32. Ra7 {[%clk 0:00:01.1]} 32... Bxb5+ {[%clk 0:01:24.2]}
33. axb5 {[%clk 0:00:02]} 33... Rxb5 {[%clk 0:01:24.8]} 34. Ke2 {[%clk
0:00:02.6]} 34... Nf6 {[%clk 0:01:21.9]} 35. Bc3 {[%clk 0:00:03.1]} 35... Nd5
{[%clk 0:01:22]} 36. Kd3 {[%clk 0:00:01.3]} 36... Nxc3 {[%clk 0:01:21.5]} 37.
bxc3 {[%clk 0:00:02.2]} 37... g4 {[%clk 0:01:20.9]} 38. Ke3 {[%clk 0:00:02.8]}
38... Rf5 {[%clk 0:01:20.4]} 39. c4 {[%clk 0:00:01.5]} 39... h5 {[%clk
0:01:19.7]} 0-1

[Event "*** Titled Tuesday Blitz"]
[Site "Chess.com"]
[Date "2020.04.28"]
[Round "4"]
[White "Oneofmyturns"]
[Black "JosefineHeinemann"]
[Result "1-0"]
[WhiteElo "2663"]
[BlackElo "2425"]
[TimeControl "180+1"]
[EndTime "10:39:44 PDT"]
[Termination "Oneofmyturns won by checkmate"]

1. d4 {[%clk 0:03:00.9]} 1... Nf6 {[%clk 0:02:58.3]} 2. c4 {[%clk 0:03:01.1]}
2... g6 {[%clk 0:02:58.5]} 3. Nc3 {[%clk 0:03:01.4]} 3... d5 {[%clk 0:02:59.2]}
4. cxd5 {[%clk 0:03:01]} 4... Nxd5 {[%clk 0:03:00.1]} 5. e4 {[%clk 0:03:01.6]}
5... Nxc3 {[%clk 0:03:00.8]} 6. bxc3 {[%clk 0:03:02.5]} 6... Bg7 {[%clk
0:03:01.3]} 7. Be3 {[%clk 0:03:03.2]} 7... c5 {[%clk 0:03:01.8]} 8. Qd2 {[%clk
0:03:03.6]} 8... O-O {[%clk 0:03:01.9]} 9. Rc1 {[%clk 0:03:03]} 9... Nd7 {[%clk
0:03:02.1]} 10. Nf3 {[%clk 0:02:39.7]} 10... Qa5 {[%clk 0:03:00.4]} 11. d5
{[%clk 0:02:36]} 11... Nf6 {[%clk 0:02:58.3]} 12. c4 {[%clk 0:02:29.8]} 12...
Qxd2+ {[%clk 0:02:44.9]} 13. Nxd2 {[%clk 0:02:30.7]} 13... e6 {[%clk 0:02:45.1]}
14. Bxc5 {[%clk 0:02:20.6]} 14... Rd8 {[%clk 0:02:43.6]} 15. Be7 {[%clk
0:01:58.3]} 15... Re8 {[%clk 0:02:41.8]} 16. d6 {[%clk 0:01:57.9]} 16... Nd7
{[%clk 0:02:39.1]} 17. c5 {[%clk 0:01:55.1]} 17... Ne5 {[%clk 0:02:38]} 18. Bb5
{[%clk 0:01:46.1]} 18... Bd7 {[%clk 0:02:37.6]} 19. a4 {[%clk 0:01:31.2]} 19...
Rac8 {[%clk 0:02:33.9]} 20. Ke2 {[%clk 0:01:23.7]} 20... a6 {[%clk 0:02:32.1]}
21. Bxd7 {[%clk 0:01:22.5]} 21... Nxd7 {[%clk 0:02:33]} 22. Nb3 {[%clk
0:01:22.8]} 22... Rc6 {[%clk 0:02:25.7]} 23. Na5 {[%clk 0:01:06]} 23... Rxc5
{[%clk 0:02:20.9]} 24. Nxb7 {[%clk 0:01:05.6]} 24... Rxc1 {[%clk 0:02:14.6]} 25.
Rxc1 {[%clk 0:01:06.5]} 25... Bf8 {[%clk 0:02:14.4]} 26. Rc7 {[%clk 0:01:02.7]}
26... Bxe7 {[%clk 0:02:06.4]} 27. Rxd7 {[%clk 0:00:48.3]} 27... Bf6 {[%clk
0:02:06.2]} 28. f4 {[%clk 0:00:45.6]} 28... e5 {[%clk 0:02:05.7]} 29. f5 {[%clk
0:00:40.6]} 29... gxf5 {[%clk 0:02:05.8]} 30. exf5 {[%clk 0:00:41.5]} 30... e4
{[%clk 0:02:06]} 31. Rc7 {[%clk 0:00:40.2]} 31... Re5 {[%clk 0:01:59.1]} 32.
Rc8+ {[%clk 0:00:36]} 32... Kg7 {[%clk 0:01:58.6]} 33. d7 {[%clk 0:00:36.6]}
33... Rxf5 {[%clk 0:01:52.4]} 34. d8=Q {[%clk 0:00:36.7]} 34... Bxd8 {[%clk
0:01:52.3]} 35. Rxd8 {[%clk 0:00:37.6]} 35... Rg5 {[%clk 0:01:49.4]} 36. g3
{[%clk 0:00:38]} 36... Rh5 {[%clk 0:01:46.7]} 37. h4 {[%clk 0:00:37.9]} 37...
Rf5 {[%clk 0:01:46.4]} 38. Nd6 {[%clk 0:00:34.3]} 38... Ra5 {[%clk 0:01:44.4]}
39. Nxe4 {[%clk 0:00:33]} 39... Rxa4 {[%clk 0:01:44.4]} 40. Kf3 {[%clk
0:00:33.2]} 40... a5 {[%clk 0:01:43.5]} 41. Rd7 {[%clk 0:00:31.9]} 41... h5
{[%clk 0:01:40.6]} 42. Ng5 {[%clk 0:00:31.3]} 42... Ra3+ {[%clk 0:01:40.7]} 43.
Kf4 {[%clk 0:00:31.7]} 43... Ra4+ {[%clk 0:01:37.6]} 44. Kf5 {[%clk 0:00:31.8]}
44... Ra3 {[%clk 0:01:37.6]} 45. Rxf7+ {[%clk 0:00:30.9]} 45... Kg8 {[%clk
0:01:38]} 46. Kf4 {[%clk 0:00:30.6]} 46... Ra4+ {[%clk 0:01:38]} 47. Kf3 {[%clk
0:00:30.1]} 47... Ra3+ {[%clk 0:01:38.4]} 48. Kg2 {[%clk 0:00:30.5]} 48... Ra2+
{[%clk 0:01:38.8]} 49. Kh3 {[%clk 0:00:30.7]} 49... a4 {[%clk 0:01:39.4]} 50.
Ra7 {[%clk 0:00:27.7]} 50... a3 {[%clk 0:01:39.6]} 51. Ne4 {[%clk 0:00:27.5]}
51... Ra1 {[%clk 0:01:39.9]} 52. Nf6+ {[%clk 0:00:26.7]} 52... Kf8 {[%clk
0:01:39]} 53. Nxh5 {[%clk 0:00:26.2]} 53... a2 {[%clk 0:01:39.4]} 54. Kh2 {[%clk
0:00:26.7]} 54... Ke8 {[%clk 0:01:38.8]} 55. Nf4 {[%clk 0:00:26.8]} 55... Kd8
{[%clk 0:01:39.2]} 56. h5 {[%clk 0:00:23.6]} 56... Ke8 {[%clk 0:01:40.1]} 57. h6
{[%clk 0:00:23.4]} 57... Kf8 {[%clk 0:01:40.5]} 58. g4 {[%clk 0:00:23.1]} 58...
Kg8 {[%clk 0:01:40]} 59. h7+ {[%clk 0:00:21.4]} 59... Kh8 {[%clk 0:01:40.2]} 60.
Ng6# {[%clk 0:00:21.4]} 1-0

[Event "*** Titled Tuesday Blitz"]
[Site "Chess.com"]
[Date "2020.04.28"]
[Round "4"]
[White "hedgehog280"]
[Black "Mashenka97"]
[Result "1-0"]
[WhiteElo "2682"]
[BlackElo "2357"]
[TimeControl "180+1"]
[EndTime "10:39:44 PDT"]
[Termination "hedgehog280 won by resignation"]

1. e4 {[%clk 0:03:00.9]} 1... g6 {[%clk 0:02:59]} 2. f4 {[%clk 0:03:01.3]} 2...
Bg7 {[%clk 0:02:58]} 3. Nf3 {[%clk 0:03:01.8]} 3... c5 {[%clk 0:02:57.6]} 4. c3
{[%clk 0:03:01.8]} 4... Nc6 {[%clk 0:02:56.7]} 5. d4 {[%clk 0:03:01.6]} 5...
cxd4 {[%clk 0:02:56.2]} 6. cxd4 {[%clk 0:03:01.6]} 6... d5 {[%clk 0:02:56]} 7.
e5 {[%clk 0:02:57.6]} 7... Bg4 {[%clk 0:02:54.6]} 8. Be3 {[%clk 0:02:57.2]} 8...
Nh6 {[%clk 0:02:53]} 9. Be2 {[%clk 0:02:55.2]} 9... Nf5 {[%clk 0:02:51]} 10. Bf2
{[%clk 0:02:55.4]} 10... h5 {[%clk 0:02:49.6]} 11. Nc3 {[%clk 0:02:52.2]} 11...
O-O {[%clk 0:02:41.7]} 12. h3 {[%clk 0:02:47.2]} 12... Bxf3 {[%clk 0:02:40.5]}
13. Bxf3 {[%clk 0:02:48.1]} 13... h4 {[%clk 0:02:39.5]} 14. Bxd5 {[%clk
0:02:45]} 14... e6 {[%clk 0:02:23.7]} 15. Bxc6 {[%clk 0:02:44.7]} 15... bxc6
{[%clk 0:02:24.6]} 16. O-O {[%clk 0:02:41.7]} 16... g5 {[%clk 0:02:13.2]} 17.
fxg5 {[%clk 0:02:37.2]} 17... Qxg5 {[%clk 0:02:13]} 18. Ne4 {[%clk 0:02:37.4]}
18... Qg6 {[%clk 0:02:04.3]} 19. Qg4 {[%clk 0:02:32.2]} 19... Rfd8 {[%clk
0:01:48.4]} 20. Rfd1 {[%clk 0:02:26.2]} 20... Rab8 {[%clk 0:01:34.1]} 21. b3
{[%clk 0:02:26.5]} 21... Rb4 {[%clk 0:01:28.3]} 22. Qxg6 {[%clk 0:02:21.9]}
22... fxg6 {[%clk 0:01:27]} 23. Nc5 {[%clk 0:02:00.4]} 23... Kf7 {[%clk
0:01:15.2]} 24. a3 {[%clk 0:01:53.8]} 24... Rb5 {[%clk 0:01:01.7]} 25. b4 {[%clk
0:01:53.4]} 25... Bf8 {[%clk 0:00:53.5]} 26. Ne4 {[%clk 0:01:46.6]} 26... Be7
{[%clk 0:00:45.7]} 27. Rac1 {[%clk 0:01:43.8]} 27... Rbd5 {[%clk 0:00:42.1]} 28.
Rxc6 {[%clk 0:01:31.3]} 28... Rxd4 {[%clk 0:00:37.9]} 29. Bxd4 {[%clk
0:01:18.7]} 29... Nxd4 {[%clk 0:00:38.8]} 30. Rc7 {[%clk 0:01:18.6]} 30... Ne2+
{[%clk 0:00:37.2]} 31. Kf2 {[%clk 0:01:16.7]} 31... Rxd1 {[%clk 0:00:35.4]} 32.
Kxe2 {[%clk 0:01:17.1]} 32... Ra1 {[%clk 0:00:31.7]} 33. Rxa7 {[%clk 0:01:14]}
33... Ke8 {[%clk 0:00:30.7]} 34. Nd6+ {[%clk 0:01:14.1]} 34... Kd8 {[%clk
0:00:29.5]} 35. b5 {[%clk 0:01:12.1]} 35... Bg5 {[%clk 0:00:26.2]} 36. b6 {[%clk
0:01:10.7]} 36... Rb1 {[%clk 0:00:20.5]} 37. b7 {[%clk 0:01:09.7]} 37... Kc7
{[%clk 0:00:19.4]} 38. Ra8 {[%clk 0:01:09.8]} 38... Bf4 {[%clk 0:00:16.2]} 39.
Rc8+ {[%clk 0:01:09.2]} 39... Kd7 {[%clk 0:00:13.6]} 1-0

[Event "*** Titled Tuesday Blitz"]
[Site "Chess.com"]
[Date "2020.04.28"]
[Round "4"]
[White "IAgrest"]
[Black "Pomegranate988"]
[Result "0-1"]
[WhiteElo "2265"]
[BlackElo "2460"]
[TimeControl "180+1"]
[EndTime "10:39:44 PDT"]
[Termination "Pomegranate988 won on time"]

1. e4 {[%clk 0:03:00.9]} 1... c6 {[%clk 0:02:59.1]} 2. d4 {[%clk 0:03:00.1]}
2... d5 {[%clk 0:03:00]} 3. f3 {[%clk 0:03:00.3]} 3... g6 {[%clk 0:02:58.5]} 4.
c3 {[%clk 0:02:52.1]} 4... Bg7 {[%clk 0:02:58.1]} 5. Bd3 {[%clk 0:02:48.7]} 5...
Nd7 {[%clk 0:02:47.3]} 6. Ne2 {[%clk 0:02:48.1]} 6... e5 {[%clk 0:02:44.6]} 7.
O-O {[%clk 0:02:46.4]} 7... Ne7 {[%clk 0:02:43.5]} 8. Na3 {[%clk 0:02:28.8]}
8... O-O {[%clk 0:02:41]} 9. Nc2 {[%clk 0:02:26]} 9... a5 {[%clk 0:02:25.6]} 10.
a4 {[%clk 0:02:15.7]} 10... exd4 {[%clk 0:02:17.4]} 11. cxd4 {[%clk 0:02:09.3]}
11... Qb6 {[%clk 0:02:15.9]} 12. Kh1 {[%clk 0:02:07.8]} 12... c5 {[%clk
0:02:10.5]} 13. exd5 {[%clk 0:01:56.3]} 13... Nxd5 {[%clk 0:02:08.6]} 14. Bc4
{[%clk 0:01:46.6]} 14... N7f6 {[%clk 0:02:00.6]} 15. Rb1 {[%clk 0:01:28.3]}
15... Be6 {[%clk 0:01:55.5]} 16. b3 {[%clk 0:01:20.7]} 16... Rfd8 {[%clk
0:01:47.3]} 17. Qe1 {[%clk 0:01:12.3]} 17... Bf5 {[%clk 0:01:44.9]} 18. Rb2
{[%clk 0:01:00.7]} 18... Bxc2 {[%clk 0:01:42.9]} 19. Rxc2 {[%clk 0:01:00.7]}
19... cxd4 {[%clk 0:01:43.6]} 20. Nf4 {[%clk 0:00:42.6]} 20... Ne3 {[%clk
0:01:36.9]} 21. Bxe3 {[%clk 0:00:40.4]} 21... dxe3 {[%clk 0:01:37.8]} 22. Qe2
{[%clk 0:00:34]} 22... Qd4 {[%clk 0:01:35.4]} 23. g3 {[%clk 0:00:29.4]} 23...
Bh6 {[%clk 0:01:30.4]} 24. Ng2 {[%clk 0:00:26.8]} 24... Qb6 {[%clk 0:01:20.2]}
25. Re1 {[%clk 0:00:25.7]} 25... Rd2 {[%clk 0:01:17.1]} 26. Rxd2 {[%clk
0:00:18.2]} 26... exd2 {[%clk 0:01:18]} 27. Rd1 {[%clk 0:00:11.3]} 27... Rd8
{[%clk 0:01:15.2]} 28. f4 {[%clk 0:00:10.5]} 28... Qd6 {[%clk 0:01:12.8]} 29.
Ne3 {[%clk 0:00:09.5]} 29... Ne4 {[%clk 0:01:07.4]} 30. Ng4 {[%clk 0:00:08.4]}
30... Qc6 {[%clk 0:00:58.4]} 31. Bxf7+ {[%clk 0:00:07.7]} 31... Kg7 {[%clk
0:00:57.3]} 32. Qg2 {[%clk 0:00:05.8]} 32... Nc3 {[%clk 0:00:55.5]} 0-1

[Event "*** Titled Tuesday Blitz"]
[Site "Chess.com"]
[Date "2020.04.28"]
[Round "4"]
[White "MITerryble"]
[Black "LizaSolovyova"]
[Result "1-0"]
[WhiteElo "2872"]
[BlackElo "2540"]
[TimeControl "180+1"]
[EndTime "10:39:45 PDT"]
[Termination "MITerryble won by resignation"]

1. e4 {[%clk 0:03:00.9]} 1... e5 {[%clk 0:02:59.8]} 2. Nf3 {[%clk 0:02:59.8]}
2... d6 {[%clk 0:03:00.2]} 3. d4 {[%clk 0:02:59.8]} 3... Qe7 {[%clk 0:02:59.6]}
4. Bc4 {[%clk 0:02:52.8]} 4... h6 {[%clk 0:02:59.8]} 5. O-O {[%clk 0:02:52.4]}
5... c6 {[%clk 0:03:00.4]} 6. b3 {[%clk 0:02:50.1]} 6... Bg4 {[%clk 0:02:52.9]}
7. dxe5 {[%clk 0:02:33.5]} 7... dxe5 {[%clk 0:02:35.6]} 8. Ba3 {[%clk
0:02:33.4]} 8... Qc7 {[%clk 0:02:34.9]} 9. Bxf8 {[%clk 0:02:22.8]} 9... Kxf8
{[%clk 0:02:35]} 10. h3 {[%clk 0:02:17.9]} 10... Bxf3 {[%clk 0:02:27.9]} 11.
Qxf3 {[%clk 0:02:18.8]} 11... Nf6 {[%clk 0:02:28.2]} 12. Nc3 {[%clk 0:02:13.2]}
12... Nbd7 {[%clk 0:02:23.3]} 13. Rad1 {[%clk 0:02:11.4]} 13... Nb6 {[%clk
0:02:18.1]} 14. Bd3 {[%clk 0:02:08.7]} 14... Rd8 {[%clk 0:02:16]} 15. Ne2 {[%clk
0:02:08.8]} 15... Qe7 {[%clk 0:02:10.3]} 16. a4 {[%clk 0:02:05]} 16... a5 {[%clk
0:02:08.9]} 17. Qe3 {[%clk 0:02:04.7]} 17... Nbd7 {[%clk 0:02:06.7]} 18. Qa7
{[%clk 0:02:02.2]} 18... Qb4 {[%clk 0:01:56.7]} 19. Bc4 {[%clk 0:01:59.8]} 19...
Ke7 {[%clk 0:01:53.9]} 20. Ng3 {[%clk 0:01:48.8]} 20... g6 {[%clk 0:01:53.7]}
21. Qe3 {[%clk 0:01:38.6]} 21... Qc5 {[%clk 0:01:47]} 22. Qf3 {[%clk 0:01:33.7]}
22... h5 {[%clk 0:01:45.2]} 23. Kh1 {[%clk 0:01:33.1]} 23... h4 {[%clk
0:01:44.9]} 24. Ne2 {[%clk 0:01:32.1]} 24... Nb6 {[%clk 0:01:32.4]} 25. Bd3
{[%clk 0:01:31.5]} 25... Rd6 {[%clk 0:01:25.4]} 26. Ng1 {[%clk 0:01:22.4]} 26...
Nh5 {[%clk 0:01:16.8]} 27. Ne2 {[%clk 0:01:20.5]} 27... Rf6 {[%clk 0:01:15.3]}
28. Qg4 {[%clk 0:01:12]} 28... Nf4 {[%clk 0:01:01.3]} 29. Nxf4 {[%clk
0:01:12.2]} 29... Rxf4 {[%clk 0:00:59.6]} 30. Qg5+ {[%clk 0:01:12.7]} 30... Ke6
{[%clk 0:00:54.1]} 31. Be2 {[%clk 0:01:12.9]} 31... Qxc2 {[%clk 0:00:28.5]} 32.
Bg4+ {[%clk 0:01:09.8]} 32... Rxg4 {[%clk 0:00:28.9]} 33. Qxg4+ {[%clk
0:01:10.1]} 33... Ke7 {[%clk 0:00:29]} 34. Qg5+ {[%clk 0:01:10.5]} 34... Ke6
{[%clk 0:00:27.6]} 35. f4 {[%clk 0:01:07.2]} 35... f6 {[%clk 0:00:17.6]} 36. f5+
{[%clk 0:01:05.2]} 36... gxf5 {[%clk 0:00:16.4]} 37. exf5+ {[%clk 0:01:05.2]}
37... Ke7 {[%clk 0:00:15.2]} 38. Qg7+ {[%clk 0:01:05.2]} 1-0